bitfinex-derivatives/quotes_ETHF0:USTF0_20250404
["timestamp","ask_amount","ask_price","bid_price","bid_amount"]
[1743768229799,1.12425,1779.1,1779.0,5.48325]
[1743768230005,2.64015,1779.1,1779.0,5.48325]
[1743768230500,1.12438,1778.9,1778.8,0.00843359]
[1743768230904,3.62438,1778.9,1778.8,0.00843359]
[1743768231105,5.14028,1778.9,1778.8,0.00843359]
[1743768231297,2.64028,1778.9,1778.8,0.00843359]
[1743768232115,2.64028,1778.9,1778.8,1.13287359]
[1743768232403,1.5159,1778.9,1778.8,5.49087359]
[1743768232800,1.5159,1778.9,1778.8,8.69867359]
[1743768232999,0.7462,1779.2,1779.1,1.12425]
[1743768233000,1.12425,1779.2,1779.1,1.12425]
[1743768233206,1.5052,1779.2,1779.1,5.48225]
[1743768233397,2.62939,1779.2,1779.1,5.48225]
[1743768234102,1.5052,1779.2,1779.1,5.48225]
[1743768234302,1.5052,1779.2,1779.1,6.96735]
[1743768234705,2.62939,1779.2,1779.1,5.48225]
[1743768234900,2.62939,1779.2,1779.1,4.358]
[1743768237104,1.12431,1779.0,1778.9,1.12431]
[1743768237307,1.12438,1778.9,1778.8,5.49083359]
[1743768237509,1.12435,1779.0,1778.9,1.12433]
[1743768238008,1.12438,1778.9,1778.8,5.49082359]
[1743768238203,1.12438,1778.9,1778.8,1.13282359]
[1743768238407,1.12438,1778.9,1778.8,0.00843359]
[1743768238606,1.12438,1778.9,1778.8,1.13287359]
[1743768238808,1.12438,1778.9,1778.8,0.00843359]
[1743768240002,4.33218,1778.9,1778.8,0.00843359]
[1743768241406,2.66536,1779.0,1778.9,1.12438]
[1743768242208,1.12438,1778.9,1778.8,1.13282359]
[1743768242413,2.65288,1778.9,1778.8,1.13282359]
[1743768243102,1.5285,1778.9,1778.8,1.13282359]
[1743768244003,2.65288,1778.9,1778.8,1.13282359]
[1743768244905,1.5285,1778.9,1778.8,1.13282359]
[1743768246709,0.7035,1779.3,1778.9,2.81095]
[1743768246908,0.00843359,1779.4,1779.3,1.12412]
[1743768247116,1.54713359,1779.4,1779.3,8.68792]
[1743768247412,0.00843359,1779.4,1779.3,8.68792]
[1743768247808,1.13249359,1779.4,1779.3,7.5638]
[1743768248001,1.13249359,1779.4,1779.3,4.356]
[1743768248608,0.00843359,1779.4,1779.1,7.5638]
[1743768248908,0.00843359,1779.4,1779.3,4.33192]
[1743768249708,1.54713359,1779.4,1779.3,4.33192]
[1743768250311,2.67119359,1779.4,1779.3,4.33192]
[1743768250507,0.00843359,1779.4,1779.3,4.33192]
[1743768250812,1.522,1779.6,1779.5,1.124]
[1743768251115,1.522,1779.9,1779.8,1.12381]
[1743768251615,1.522,1779.9,1779.8,1.57458356]
[1743768251815,1.522,1779.9,1779.8,7.40008356]
[1743768252917,1.522,1779.9,1779.8,8.16188356]
[1743768253214,0.00843359,1780.0,1779.9,1.12374]
[1743768253415,1.4822,1780.1,1780.0,1.13494532]
[1743768253618,2.60582,1780.1,1780.0,0.01126532]
[1743768253908,2.60582,1780.1,1779.9,3.2078]
[1743768253909,1.12368,1780.0,1779.9,3.2078]
[1743768254119,1.12386,1779.8,1779.7,1.12385]
[1743768254303,2.80921,1780.0,1779.6,1.12388]
[1743768254304,1.14360891,1779.7,1779.6,1.12388]
[1743768254505,1.14360891,1779.7,1779.6,1.13231359]
[1743768254708,1.12391,1779.7,1779.6,1.11261468]
[1743768254908,0.73083359,1779.9,1779.6,0.00843359]
[1743768255116,0.73083359,1779.9,1779.8,1.12381]
[1743768255513,1.85457359,1779.9,1779.8,1.12381]
[1743768255814,1.12387,1779.7,1779.6,0.00843359]
[1743768256010,3.2078,1779.8,1779.6,0.00843359]
[1743768256211,0.00843359,1779.9,1779.8,1.12381]
[1743768256811,1.13217359,1779.9,1779.8,1.12381]
[1743768257010,2.60827359,1779.9,1779.8,1.12381]
[1743768257614,1.48453359,1779.9,1779.8,1.12381]
[1743768257817,1.12381,1779.8,1779.7,5.47684]
[1743768258124,2.25343359,1779.9,1779.8,1.12381]
[1743768258420,3.37717359,1779.9,1779.8,1.12381]
[1743768259220,3.37717359,1779.9,1779.7,5.47684]
[1743768259521,1.12381,1779.8,1779.7,5.47684]
[1743768259720,1.5223,1779.8,1779.7,5.47684]
[1743768260116,1.5223,1779.8,1779.7,1.12384]
[1743768260314,1.12387,1779.7,1779.6,0.00843359]
[1743768260511,1.83157,1779.7,1779.6,0.00843359]
[1743768260711,1.12414,1779.3,1779.2,1.12415]
[1743768260917,1.12414,1779.3,1779.2,1.12419]
[1743768261218,1.12431,1779.0,1778.9,42.9798]
[1743768261522,1.12428,1779.1,1779.0,1.12429]
[1743768261918,1.12431,1779.0,1778.9,44.11257359]
[1743768262124,2.64311,1779.0,1778.9,44.11257359]
[1743768263409,2.64311,1779.0,1778.9,42.98823359]
[1743768263616,2.64311,1779.0,1778.9,38.63623359]
[1743768263817,2.64311,1779.0,1778.9,0.00843359]
[1743768266020,1.12469,1778.4,1778.3,3.2078]
[1743768267530,1.12475,1778.3,1778.2,0.00843359]
[1743768270020,1.482,1778.4,1778.2,0.00843359]
[1743768270218,0.00843359,1778.5,1778.4,1.12469]
[1743768270627,0.00843359,1778.5,1778.4,5.47669]
[1743768271019,0.00843359,1778.5,1778.4,6.94749]
[1743768271220,0.00843359,1778.5,1778.4,9.44749]
[1743768271720,0.00843359,1778.5,1778.4,6.94749]
[1743768272228,1.13306359,1778.5,1778.4,6.94749]
[1743768272427,0.00843359,1778.5,1778.4,6.94749]
[1743768272623,2.65826359,1778.5,1778.4,6.94749]
[1743768272822,1.12469,1778.4,1778.3,3.2078]
[1743768273023,2.64989,1778.4,1778.3,3.2078]
[1743768273425,1.12475,1778.3,1778.2,0.00843359]
[1743768273628,2.64995,1778.3,1778.2,0.00843359]
[1743768274333,2.64995,1778.3,1778.2,1.13325359]
[1743768274725,2.64995,1778.3,1778.2,0.00843359]
[1743768275432,2.64995,1778.3,1778.2,1.13325359]
[1743768276133,1.5252,1778.3,1778.2,1.13325359]
[1743768276630,2.64995,1778.3,1778.2,0.00843359]
[1743768276824,2.64995,1778.3,1778.2,1.13325359]
[1743768277027,2.64995,1778.3,1778.2,0.00843359]
[1743768278231,2.64995,1778.3,1778.2,1.13325359]
[1743768278435,1.5252,1778.3,1778.2,1.13325359]
[1743768279131,2.64995,1778.3,1778.2,1.13325359]
[1743768279334,2.64995,1778.3,1778.2,0.00843359]
[1743768283337,2.64995,1778.3,1778.2,1.13325359]
[1743768283536,2.64995,1778.3,1778.2,0.00843359]
[1743768283839,1.5252,1778.3,1778.2,1.13325359]
[1743768284037,2.64995,1778.3,1778.2,1.13325359]
[1743768284240,0.00843359,1778.5,1778.4,1.12469]
[1743768284440,1.47503359,1778.5,1778.4,1.12469]
[1743768284648,1.47503359,1778.5,1778.4,2.59369]
[1743768285840,0.00843359,1778.5,1778.4,2.59369]
[1743768286238,1.4666,1778.7,1778.6,1.12456]
[1743768286438,1.4666,1778.7,1778.6,8.68336]
[1743768287136,1.12436,1779.0,1778.9,1.12438]
[1743768287339,2.58846,1779.0,1778.9,1.12438]
[1743768287539,1.4641,1779.0,1778.9,1.12438]
[1743768287744,2.58841,1779.0,1778.9,1.12438]
[1743768288337,1.4641,1779.0,1778.9,1.12438]
[1743768288643,2.58841,1779.0,1778.9,1.12438]
[1743768289033,1.12438,1778.9,1778.8,1.12439]
[1743768289241,2.58848,1778.9,1778.8,1.12439]
[1743768289444,2.58848,1778.9,1778.7,1.86099]
[1743768289742,1.12444,1778.8,1778.7,6.21099]
[1743768289948,2.60714,1778.8,1778.7,6.21099]
[1743768290139,1.4827,1778.8,1778.7,5.06879]
[1743768290740,1.4827,1778.8,1778.7,6.50239]
[1743768291041,2.60714,1778.8,1778.7,0.7365]
[1743768291245,2.60714,1778.8,1778.7,1.1245]
[1743768291441,1.4827,1778.8,1778.7,1.1245]
[1743768292540,1.4827,1778.8,1778.7,4.3323]
[1743768292743,0.00843359,1779.1,1779.0,1.12431]
[1743768293744,1.45493359,1779.1,1778.9,10.89974]
[1743768293945,1.12431,1779.0,1778.9,10.89974]
[1743768294345,1.12431,1779.0,1778.9,9.40294]
[1743768294548,1.45493359,1779.1,1779.0,1.12431]
[1743768294549,2.57922359,1779.1,1779.0,1.12431]
[1743768296934,1.45493359,1779.1,1779.0,1.12431]
[1743768297447,1.12408,1779.4,1779.3,1.12412]
[1743768297839,1.12418,1779.3,1779.2,1.12414]
[1743768298036,1.12419,1779.2,1779.1,4.332]
[1743768299847,1.52473359,1779.3,1779.2,1.12419]
[1743768300343,2.64885359,1779.3,1779.2,1.12419]
[1743768301148,1.12419,1779.2,1779.1,4.332]
[1743768301445,2.64049,1779.2,1779.1,4.332]
[1743768302847,1.5163,1779.2,1779.1,4.332]
[1743768304148,2.64049,1779.2,1779.1,4.332]
[1743768304546,1.5163,1779.2,1779.1,4.332]
[1743768304948,3.59e-06,1779.3,1779.2,1.12419]
[1743768305248,1.5329,1779.8,1779.7,1.12387]
[1743768305447,1.5329,1779.8,1779.7,4.33167]
[1743768305846,1.5329,1779.8,1779.7,6.49317]
[1743768307037,0.00843359,1779.9,1779.8,1.12381]
[1743768307441,1.54133359,1779.9,1779.8,1.12381]
[1743768308849,3.2078,1780.8,1780.7,1.12324]
[1743768309055,1.4116,1780.9,1780.8,1.14283891]
[1743768309251,0.7065,1780.9,1780.8,1.14283891]
[1743768309443,1.82807,1781.2,1781.0,1.12303]
[1743768309649,1.123,1781.1,1780.9,1.12307]
[1743768309848,1.82807,1781.2,1780.9,3.2078]
[1743768310052,0.00553315,1781.2,1781.1,1.12296]
[1743768310243,0.00553315,1781.2,1780.9,7.5518]
[1743768310447,1.12311,1780.9,1780.8,1.13156359]
[1743768310651,1.12311,1780.9,1780.8,0.00843359]
[1743768310852,3.62311,1780.9,1780.8,0.00843359]
[1743768311351,5.07041,1780.9,1780.8,0.00843359]
[1743768312652,5.77211,1780.9,1780.8,0.00843359]
[1743768312851,3.27211,1780.9,1780.8,0.00843359]
[1743768314553,2.149,1780.9,1780.8,0.00843359]
[1743768314752,2.149,1780.9,1780.8,1.13161359]
[1743768315157,3.27211,1780.9,1780.8,1.13161359]
[1743768315553,3.27211,1780.9,1780.8,0.00843359]
[1743768315751,5.77211,1780.9,1780.8,0.00843359]
[1743768316752,2.8082,1780.7,1780.2,4.33131]
[1743768316954,3.2078,1780.4,1780.0,8.67243]
[1743768317151,3.2078,1780.4,1780.0,4.33143]
[1743768317152,1.12362,1780.1,1780.0,4.33143]
[1743768317660,1.12362,1780.1,1780.0,1.12363]
[1743768318161,1.12368,1780.0,1779.9,1.13212359]
[1743768318357,2.53608,1780.0,1779.9,0.00843359]
[1743768319247,1.4124,1780.0,1779.9,5.47217359]
[1743768319451,0.00843359,1780.2,1780.1,1.12362]
[1743768319760,1.12362,1780.1,1780.0,1.12362]
[1743768319949,2.54444359,1780.2,1780.1,1.12362]
[1743768320660,1.42083359,1780.2,1780.1,1.12362]
[1743768320859,2.54438359,1780.2,1780.1,1.12362]
[1743768321361,1.42083359,1780.2,1780.1,1.12362]
[1743768321859,1.42083359,1780.2,1780.1,3.33252]
[1743768323152,8.218e-05,1780.2,1780.1,3.33252]
[1743768324059,3.52796,1780.8,1780.5,1.12331]
[1743768324250,3.2078,1781.0,1780.6,3.2078]
[1743768324450,2.62175,1780.9,1780.8,1.12318]
[1743768324657,1.12322,1780.8,1780.7,1.12321]
[1743768324855,1.12324,1780.7,1780.6,4.33107]
[1743768325054,1.12324,1780.7,1780.6,3.2078]
[1743768325260,7.51995315,1780.8,1780.4,1.1234]
[1743768325560,1.12342,1780.5,1780.4,1.1234]
[1743768326457,1.50413315,1780.8,1780.3,10.35552]
[1743768326652,1.12327,1780.7,1780.6,1.12325]
[1743768327663,1.12329,1780.7,1780.6,1.12328]
[1743768327857,10.32797315,1780.8,1780.3,7.5468]
[1743768328064,10.32797315,1780.8,1780.5,1.12336]
[1743768328065,1.87795,1780.6,1780.5,1.12336]
[1743768328263,0.7546,1780.6,1780.5,1.12336]
[1743768328464,1.50413315,1780.8,1780.7,1.12324]
[1743768328663,1.50413315,1780.8,1780.7,4.33104]
[1743768329163,0.00553315,1780.8,1780.7,4.33104]
[1743768329354,0.00553315,1780.8,1780.7,5.82004]
[1743768329777,0.00553315,1780.8,1780.7,46.62004]
[1743768329980,0.00553315,1780.8,1780.7,5.82004]
[1743768330173,0.00553315,1780.8,1780.7,4.33104]
[1743768330879,0.00553315,1780.8,1780.7,8.32004]
[1743768331075,3.15e-06,1780.8,1780.7,8.32004]
[1743768331471,1.4074,1781.4,1781.3,1.12286]
[1743768331682,1.83246,1781.7,1781.6,1.12267]
[1743768331881,1.12273,1781.6,1781.5,1.12271]
[1743768332179,2.63353,1781.6,1781.5,1.12271]
[1743768332578,1.12273,1781.5,1781.4,0.00843359]
[1743768332881,1.12273,1781.5,1781.0,8.77361]
[1743768332882,1.12299,1781.1,1781.0,3.2078]
[1743768333181,1.12299,1781.1,1781.0,1.12305]
[1743768333772,1.12311,1780.9,1780.8,4.33093]
[1743768334085,4.31842,1781.1,1780.7,0.00843359]
[1743768334385,1.12316,1780.9,1780.8,1.12316]
[1743768334569,1.12318,1780.8,1780.7,1.13164359]
[1743768334776,1.12324,1780.7,1780.6,1.12324]
[1743768335379,1.12335,1780.6,1780.5,1.12333]
[1743768335977,1.12336,1780.5,1780.4,4.33962359]
[1743768336384,2.53716,1780.6,1780.5,1.12336]
[1743768336775,1.12336,1780.5,1780.4,1.13181359]
[1743768337080,1.4138,1780.5,1780.4,1.13186359]
[1743768337278,1.4138,1780.5,1780.4,4.33966359]
[1743768337578,1.4138,1780.5,1780.4,5.81236359]
[1743768337986,1.12323,1780.8,1780.7,1.12324]
[1743768338691,1.4144,1780.9,1780.5,2.80827]
[1743768338873,1.4144,1780.9,1780.6,1.12325]
[1743768339076,1.4144,1780.9,1780.4,6.02481359]
[1743768339077,3.2078,1780.8,1780.4,0.00843359]
[1743768339286,1.12336,1780.6,1780.5,1.12336]
[1743768339879,1.4144,1780.6,1780.5,1.12336]
[1743768340280,1.4144,1780.6,1780.5,2.52206]
[1743768341281,1.12317,1780.9,1780.8,1.12318]
[1743768341482,1.4268,1780.9,1780.8,1.12318]
[1743768341789,2.54991,1780.9,1780.8,1.12318]
[1743768341989,1.12322,1780.8,1780.7,1.12319]
[1743768342189,1.12324,1780.7,1780.6,8.66606]
[1743768342488,1.12324,1780.7,1780.6,4.33106]
[1743768342882,2.55003,1780.8,1780.7,1.12324]
[1743768343695,4.6346,1780.8,1780.5,2.4894]
[1743768343881,4.6346,1780.8,1780.5,1.0789]
[1743768343882,4.3311,1780.6,1780.5,1.0789]
[1743768344083,1.12336,1780.5,1780.4,0.29443359]
[1743768344384,8.459,1780.5,1779.8,3.2078]
[1743768344588,1.12372,1780.0,1779.9,1.12369]
[1743768345188,1.12365,1780.1,1780.0,1.12364]
[1743768345388,1.12372,1780.0,1779.9,1.1237]
[1743768346091,0.00843359,1780.1,1779.8,4.34000359]
[1743768346092,1.12374,1779.9,1779.8,4.34000359]
[1743768346286,0.75963359,1780.1,1779.8,3.21623359]
[1743768346488,1.12374,1779.9,1779.8,4.34002359]
[1743768346790,1.12374,1779.9,1779.8,4.32032468]
[1743768347481,6.83154,1779.9,1779.8,1e-08]
[1743768347889,7.54254,1779.9,1779.8,1e-08]
[1743768348089,12.95183891,1779.9,1779.8,1e-08]
[1743768351395,13.39630791,1779.9,1779.8,1e-08]
[1743768351595,12.95183891,1779.9,1779.8,1e-08]
[1743768352394,17.28583891,1779.9,1779.8,1e-08]
[1743768357301,18.77853891,1779.9,1779.8,1e-08]
[1743768359600,1.12438,1778.9,1778.8,2.53821]
[1743768359798,1.12438,1778.9,1778.8,1.4138]
[1743768360396,1.12438,1778.9,1778.8,2.53824]
[1743768360795,1.12438,1778.9,1778.8,1.4138]
[1743768361092,1.12438,1778.9,1778.8,2.8842]
[1743768361305,2.60218,1778.9,1778.8,0.7097]
[1743768361800,1.12471,1778.4,1778.3,1.1247]
[1743768361994,1.12471,1778.4,1778.3,1.8913]
[1743768362194,1.12471,1778.4,1778.3,42.6913]
[1743768362603,6.01891,1778.8,1778.3,0.7666]
[1743768362799,1.1246,1778.6,1778.5,1.1246]
[1743768362995,1.12452,1778.7,1778.6,1.12451]
[1743768363498,1.1245,1778.8,1778.7,1.1245]
[1743768363699,0.00843359,1779.0,1778.5,3.2078]
[1743768363898,0.00843359,1779.0,1778.9,1.12438]
[1743768364202,1.13274359,1779.0,1778.9,40.8]
[1743768364405,1.12438,1778.9,1778.8,0.7666]
[1743768364696,1.12463,1778.5,1778.4,5.97443359]
[1743768364904,1.12463,1778.5,1778.4,0.00843359]
[1743768365397,2.51453,1778.5,1778.4,0.00843359]
[1743768365598,1.12488,1778.1,1778.0,0.7378]
[1743768365897,1.12488,1778.1,1778.0,2.2804]
[1743768366696,1.12488,1778.1,1778.0,3.40534]
[1743768366894,1.12488,1778.1,1778.0,2.2804]
[1743768367102,1.12488,1778.1,1778.0,3.40534]
[1743768367298,3.2078,1778.6,1778.0,12.3222]
[1743768367505,3.9091,1778.9,1778.4,3.2078]
[1743768367702,1.12459,1778.6,1778.3,7.14589]
[1743768368004,1.12459,1778.6,1778.5,1.1246]
[1743768368200,1.12463,1778.5,1778.4,7.33804]
[1743768368603,1.12454,1778.7,1778.6,1.12454]
[1743768368804,0.00843359,1779.0,1778.5,2.81156]
[1743768369104,1.1245,1778.7,1778.6,5.8293]
[1743768369404,1.1245,1778.7,1778.6,1.4953]
[1743768369801,1.1245,1778.7,1778.6,2.61986]
[1743768370012,1.12449,1778.8,1778.7,1.1245]
[1743768370305,1.12449,1778.8,1778.7,1.4953]
[1743768371400,1.12449,1778.8,1778.7,1.1245]
[1743768372203,1.1245,1778.8,1778.7,1.1245]
[1743768372404,1.1245,1778.8,1778.7,2.5719]
[1743768372907,0.00843359,1779.0,1778.9,1.12438]
[1743768373610,0.00843359,1779.0,1778.9,3.32678]
[1743768373805,1.13274359,1779.0,1778.9,3.32678]
[1743768374811,0.00843359,1779.0,1778.9,3.32678]
[1743768375009,1.13274359,1779.0,1778.9,3.32678]
[1743768375210,1.13274359,1779.0,1778.9,0.755]
[1743768375512,0.00843359,1779.0,1778.9,1.87938]
[1743768375705,0.00843359,1779.0,1778.9,3.28368]
[1743768376910,0.00843359,1779.0,1778.9,1.87938]
[1743768377304,0.00843359,1779.0,1778.9,3.28368]
[1743768377703,3.2078,1779.3,1778.9,3.28368]
[1743768377704,1.12403,1779.5,1778.9,4.6593]
[1743768377906,4.33173,1779.6,1779.5,1.124]
[1743768378713,4.33173,1779.6,1779.5,2.5819]
[1743768379007,3.2078,1779.6,1779.5,2.5819]
[1743768379209,4.33173,1779.6,1779.5,2.5819]
[1743768379605,3.2078,1779.6,1779.5,2.5819]
[1743768380010,4.33173,1779.6,1779.5,2.5819]
[1743768380407,4.33173,1779.6,1779.5,1.4579]
[1743768380607,4.33173,1779.6,1779.5,2.5819]
[1743768380809,1.12393,1779.6,1779.5,2.5819]
[1743768381016,1.50923359,1779.7,1779.6,1.12393]
[1743768381206,2.63310359,1779.7,1779.6,1.12393]
[1743768382817,1.12393,1779.6,1779.5,2.58188]
[1743768383117,1.124,1779.5,1779.4,0.71633359]
[1743768383313,1.124,1779.5,1779.4,1.84039359]
[1743768383511,1.124,1779.5,1779.4,0.00843359]
[1743768383712,1.8953,1779.5,1779.4,0.00843359]
[1743768384311,5.1031,1779.5,1779.4,0.00843359]
[1743768384713,7.6031,1779.5,1779.4,0.00843359]
[1743768384910,2.81039,1779.3,1778.9,1.12435]
[1743768385216,1.12433,1779.1,1779.0,1.12427]
[1743768385412,1.12436,1779.0,1778.9,1.1243]
[1743768385720,1.12438,1778.9,1778.8,1.84388]
[1743768386021,1.12447,1778.8,1778.7,1.12446]
[1743768386211,1.12447,1778.8,1778.7,1.13289359]
[1743768386412,1.4175,1778.9,1778.8,1.12444]
[1743768386607,2.54189,1778.9,1778.8,1.12444]
[1743768386812,2.54189,1778.9,1778.7,1.13288359]
[1743768387217,1.4175,1778.9,1778.8,1.12444]
[1743768387512,1.12444,1778.8,1778.7,1.13289359]
[1743768387719,1.12444,1778.8,1778.7,0.00843359]
[1743768387920,1.12444,1778.8,1778.7,1.13288359]
[1743768388220,1.4175,1778.9,1778.8,1.12444]
[1743768388419,0.7713,1779.1,1778.8,3.2078]
[1743768388714,1.12437,1779.0,1778.9,2.52588]
[1743768388914,2.2,1779.1,1779.0,1.12431]
[1743768389121,1.12415,1779.3,1779.2,1.12417]
[1743768389313,2.55285,1779.3,1779.2,1.12417]
[1743768389815,4.23904,1779.3,1779.0,0.7423]
[1743768390012,1.12438,1778.9,1778.8,3.2078]
[1743768390821,1.12444,1778.8,1778.7,0.00843359]
[1743768391117,2.53414,1778.8,1778.7,0.00843359]
[1743768391517,2.53414,1778.8,1778.7,1.13293359]
[1743768391717,2.53414,1778.8,1778.7,0.00843359]
[1743768393011,5.74194,1778.8,1778.7,0.00843359]
[1743768393421,8.24194,1778.8,1778.7,0.00843359]
[1743768394617,1.4097,1778.8,1778.7,0.00843359]
[1743768394922,2.53414,1778.8,1778.7,1.13293359]
[1743768395119,2.53414,1778.8,1778.7,0.00843359]
[1743768395319,2.53414,1778.8,1778.7,1.13293359]
[1743768396222,1.4097,1778.8,1778.7,1.13293359]
[1743768396523,2.53414,1778.8,1778.7,0.00843359]
[1743768396715,1.12444,1778.9,1778.8,1.12441]
[1743768396914,2.60073,1778.9,1778.8,1.12444]
[1743768397622,2.8111,1778.8,1777.9,5.966]
[1743768397822,1.12502,1777.9,1777.7,8.71426306]
[1743768398018,1.4763,1777.8,1777.7,9.83935306]
[1743768398220,1.4763,1777.8,1777.7,13.04715306]
[1743768398421,1.5292,1778.2,1777.7,15.54715306]
[1743768398619,1.4763,1778.1,1778.0,1.12494]
[1743768398818,1.12501,1777.9,1777.8,4.33462246]
[1743768399015,1.12501,1777.9,1777.8,0.00562246]
[1743768399417,4.33281,1777.9,1777.8,0.00562246]
[1743768399918,1.12501,1777.9,1777.8,0.00562246]
[1743768400926,4.33281,1777.9,1777.8,0.00562246]
[1743768401425,6.83281,1777.9,1777.8,0.00562246]
[1743768401725,6.83281,1777.9,1777.1,1.1255]
[1743768401726,1.12539,1777.4,1777.1,1.1255]
[1743768401925,1.4048,1777.3,1776.8,39.0957053]
[1743768402426,1.4048,1777.3,1776.9,1.12558]
[1743768402621,1.12554,1777.1,1776.9,1.12558]
[1743768402820,1.12554,1777.1,1776.9,1.12562]
[1743768403117,1.12553,1777.1,1776.8,43.4247053]
[1743768403320,0.00843359,1777.2,1776.8,42.9688]
[1743768403621,7.5368,1778.0,1777.1,3.2078]
[1743768403822,1.12501,1777.9,1777.6,1.12516]
[1743768404015,3.2078,1778.0,1777.4,3.2078]
[1743768404224,5.76436,1778.2,1778.0,1.12491]
[1743768404528,4.6395,1778.2,1777.7,40.8]
[1743768404721,2.81221,1778.1,1777.9,0.00843358]
[1743768404923,4.33274,1778.0,1777.9,0.00843358]
[1743768405824,2.55656,1778.2,1777.9,0.00843358]
[1743768406028,1.12488,1778.1,1778.0,1.12492]
[1743768406228,1.12488,1778.1,1777.9,1.13340358]
[1743768406426,0.00843359,1778.3,1777.9,0.00843358]
[1743768406723,0.00843359,1778.3,1778.0,45.129]
[1743768406926,0.00843359,1778.3,1778.0,46.25394]
[1743768406927,1.12486,1778.2,1778.0,46.25394]
[1743768407128,0.00843359,1778.3,1778.0,45.129]
[1743768407319,1.12486,1778.2,1778.0,4.329]
[1743768407520,0.00843359,1778.3,1778.0,4.329]
[1743768407521,0.00843359,1778.3,1778.2,1.12482]
[1743768407725,0.00843359,1778.3,1778.2,4.33262]
[1743768408024,0.00843359,1778.3,1778.2,12.79862]
[1743768408231,1e-08,1778.3,1778.2,13.54752]
[1743768408823,1e-08,1778.3,1778.2,13.97394803]
[1743768409226,1e-08,1778.3,1778.2,8.00794803]
[1743768409523,1.12461,1778.6,1778.2,12.08063]
[1743768409734,3.2078,1778.9,1778.4,1.12465]
[1743768410030,3.2078,1778.9,1778.4,4.33245]
[1743768410226,1.12463,1778.5,1778.4,3.2078]
[1743768410819,0.00843359,1778.6,1778.4,4.33247]
[1743768411225,1.13303359,1778.6,1778.4,4.33247]
[1743768411433,0.00843359,1778.6,1778.5,1.12463]
[1743768411627,1.13304359,1778.6,1778.4,4.33245]
[1743768411825,1.13304359,1778.6,1778.4,3.2078]
[1743768412029,0.00843359,1778.6,1778.4,3.2078]
[1743768412226,0.00843359,1778.6,1778.5,1.12463]
[1743768412421,1.12463,1778.5,1778.4,3.2078]
[1743768412930,1.13302359,1778.6,1778.4,4.33247]
[1743768413228,0.00843359,1778.6,1778.4,3.2078]
[1743768413430,1.13301359,1778.6,1778.4,4.33245]
[1743768413729,1.13301359,1778.6,1778.4,4.33247]
[1743768414032,0.00843359,1778.6,1778.4,4.33244]
[1743768414430,1.13303359,1778.6,1778.4,4.33244]
[1743768414629,0.00843359,1778.6,1778.4,4.33244]
[1743768414834,1.13299359,1778.6,1778.5,1.12463]
[1743768415235,0.00843359,1778.6,1778.5,1.12463]
[1743768415729,0.00843359,1778.6,1778.5,3.62463]
[1743768415730,3.59e-06,1778.6,1778.5,3.62463]
[1743768415942,1.84457,1779.1,1778.9,1.12433]
[1743768416132,1.12441,1778.9,1778.7,5.4515]
[1743768416633,3.2078,1778.9,1778.4,10.29845]
[1743768416835,0.7538,1778.8,1778.4,4.33245]
[1743768417035,1.12458,1778.6,1778.5,0.00843359]
[1743768417638,1.12456,1778.6,1778.5,0.00843359]
[1743768418037,1.5303,1778.7,1778.5,0.00843359]
[1743768418232,2.65482,1778.7,1778.5,1.13302359]
[1743768418438,1.5303,1778.7,1778.6,4.33236]
[1743768418742,1.5303,1778.7,1778.6,1.24666]
[1743768418931,1.5303,1778.7,1778.6,5.57266]
[1743768419731,1.5303,1778.7,1778.6,8.78046]
[1743768420133,2.6548,1778.7,1778.6,8.78046]
[1743768420336,1.5303,1778.7,1778.6,8.78046]
[1743768421333,0.00843359,1778.8,1778.7,1.1245]
[1743768421534,0.00843359,1778.8,1778.7,1.2466]
[1743768421737,0.00843359,1778.8,1778.7,3.7466]
[1743768422146,0.7627,1779.5,1779.4,1.12406]
[1743768422638,3.2078,1780.2,1779.4,2.5]
[1743768422837,3.2078,1780.2,1779.8,3.2078]
[1743768423134,31.59870735,1780.3,1779.8,4.325]
[1743768423341,28.78996735,1780.3,1779.8,4.325]
[1743768423542,1.12374,1779.9,1779.8,4.33343359]
[1743768423745,4.33154,1779.9,1779.8,0.00843359]
[1743768423941,4.33154,1779.9,1779.0,38.23963]
[1743768423942,2.80983,1779.7,1779.2,4.325]
[1743768424144,3.56435,1779.6,1779.2,4.325]
[1743768424337,1.12412,1779.3,1779.2,5.44914]
[1743768424538,4.325,1779.9,1779.2,5.44914]
[1743768424539,6.01688,1780.1,1779.4,2.81016]
[1743768424744,7.53108,1780.1,1779.4,2.81016]
[1743768424938,2.80952,1779.8,1779.3,0.7002]
[1743768425138,6.01715,1780.0,1779.6,1.13230359]
[1743768425337,1.5266,1779.8,1779.6,0.00843359]
[1743768425545,1.5266,1779.8,1779.7,1.12387]
[1743768425949,2.65041,1779.8,1779.6,4.47181359]
[1743768426142,1.5266,1779.8,1779.7,1.12387]
[1743768426452,3.2078,1780.0,1779.9,1.12374]
[1743768426645,5.83580109,1780.0,1779.8,5.44778]
[1743768426845,4.71210109,1780.0,1779.9,1.12374]
[1743768427044,4.69240218,1780.0,1779.9,1.12374]
[1743768427347,5.81608218,1780.0,1779.9,1.12374]
[1743768427656,1.524,1780.0,1779.9,4.33154]
[1743768427947,1.524,1780.0,1779.9,4.46324]
[1743768428552,1.524,1780.0,1779.9,4.33154]
[1743768428750,2.64768,1780.0,1779.9,4.33154]
[1743768429350,1.524,1780.0,1779.9,4.33154]
[1743768429749,0.00843359,1780.2,1780.1,1.12362]
[1743768430146,0.00843359,1780.2,1780.1,4.33142]
[1743768430553,0.6962,1780.6,1780.5,1.12336]
[1743768430756,3.2078,1781.0,1780.5,2.80842]
[1743768430957,1.12327,1780.7,1780.6,1.12328]
[1743768431349,1.12325,1780.7,1780.4,4.4529]
[1743768431549,1.12325,1780.7,1780.6,1.1233]